bitfinex-derivatives/quotes_SOLF0:USTF0_20250424
["timestamp","ask_amount","ask_price","bid_price","bid_amount"]
[1745478808147,13.32450168,148.67,148.64,6.7264]
[1745478808341,6.7255,148.67,148.64,6.7264]
[1745478811947,6.7259,148.66,148.64,6.7264]
[1745478812151,6.7259,148.66,148.63,6.59900168]
[1745478812152,6.7259,148.66,148.63,13.32600168]
[1745478812643,6.7259,148.66,148.64,6.7268]
[1745478812848,13.32450168,148.67,148.64,6.7268]
[1745478813749,6.7246,148.69,148.66,13.32460168]
[1745478814047,31.31900168,148.71,148.66,6.59900168]
[1745478814549,31.31900168,148.71,148.68,6.7249]
[1745478815248,38.04280168,148.71,148.68,6.7249]
[1745478815450,38.04280168,148.71,148.67,6.7253]
[1745478815749,31.31900168,148.71,148.67,6.7253]
[1745478815949,6.7244,148.7,148.66,6.59900168]
[1745478816150,6.7244,148.7,148.67,6.7254]
[1745478816750,6.7244,148.7,148.66,13.32470168]
[1745478816950,38.04270168,148.71,148.66,6.59900168]
[1745478817151,38.04270168,148.71,148.67,13.32410168]
[1745478817450,13.32330168,148.7,148.67,6.7251]
[1745478817649,13.32330168,148.7,148.66,6.59900168]
[1745478817947,6.59900168,148.68,148.65,24.72]
[1745478818148,13.32430168,148.68,148.65,24.72]
[1745478818651,13.32430168,148.68,148.65,31.4462]
[1745478818855,13.32380168,148.69,148.65,38.04520168]
[1745478820052,13.32380168,148.69,148.66,6.7259]
[1745478821052,6.7253,148.68,148.65,38.04520168]
[1745478822855,13.32370168,148.69,148.66,6.7258]
[1745478823654,6.725,148.68,148.66,6.7258]
[1745478824154,6.59900168,148.69,148.66,6.7258]
[1745478824758,13.32380168,148.69,148.66,6.7258]
[1745478825248,6.725,148.68,148.65,31.4462]
[1745478825454,6.59900168,148.67,148.62,31.31900168]
[1745478825748,6.59900168,148.65,148.6,6.59900168]
[1745478825949,6.59900168,148.63,148.59,24.72]
[1745478826149,6.59900168,148.62,148.57,6.59900168]
[1745478826352,13.32700168,148.62,148.58,6.7292]
[1745478826557,13.32700168,148.62,148.57,6.59900168]
[1745478826954,13.32700168,148.62,148.59,6.7291]
[1745478827156,6.7282,148.61,148.57,6.59900168]
[1745478827758,6.7282,148.61,148.58,6.7292]
[1745478828355,6.7282,148.61,148.59,6.729]
[1745478828558,6.7282,148.61,148.57,6.59900168]
[1745478828957,6.7282,148.61,148.58,6.7294]
[1745478829656,6.7287,148.6,148.57,6.7298]
[1745478830356,6.59900168,148.61,148.58,6.7295]
[1745478830357,13.32740168,148.61,148.58,6.7295]
[1745478831054,6.7287,148.6,148.57,6.7298]
[1745478831554,6.59900168,148.58,148.52,31.31900168]
[1745478831754,6.59900168,148.56,148.52,31.31900168]
[1745478832259,6.59900168,148.56,148.53,6.7315]
[1745478832459,6.59900168,148.56,148.52,31.31900168]
[1745478832958,6.7288,148.6,148.54,6.59900168]
[1745478833154,13.32780168,148.6,148.56,6.59900168]
[1745478833457,13.32780168,148.6,148.55,6.59900168]
[1745478833656,6.59900168,148.58,148.54,6.59900168]
[1745478833854,6.59900168,148.58,148.52,24.72]
[1745478833855,6.59900168,148.57,148.53,6.59900168]
[1745478834160,6.59900168,148.57,148.54,6.7309]
[1745478834359,6.59900168,148.56,148.52,31.31900168]
[1745478834552,6.59900168,148.56,148.53,6.7317]
[1745478834754,6.59900168,148.56,148.52,31.31900168]
[1745478835459,6.59900168,148.58,148.53,6.59900168]
[1745478835655,8.49410168,148.59,148.54,6.59900168]
[1745478836161,6.7298,148.58,148.55,6.7307]
[1745478836461,8.49410168,148.59,148.54,6.59900168]
[1745478836462,6.59900168,148.57,148.54,6.59900168]
[1745478836762,6.59900168,148.57,148.54,6.7309]
[1745478837960,6.59900168,148.58,148.53,6.59900168]
[1745478838258,6.59900168,148.59,148.54,6.59900168]
[1745478838459,13.32810168,148.59,148.56,6.7301]
[1745478838660,6.59900168,148.59,148.55,6.59900168]
[1745478838958,13.32810168,148.59,148.56,6.7301]
[1745478839658,6.7291,148.59,148.56,6.7301]
[1745478839861,13.32810168,148.59,148.56,6.7301]
[1745478842260,6.7298,148.58,148.55,6.7308]
[1745478842462,6.59900168,148.57,148.53,6.59900168]
[1745478842755,6.59900168,148.57,148.52,24.5]
[1745478843264,13.32940168,148.57,148.54,6.7311]
[1745478844567,6.59900168,148.57,148.53,6.59900168]
[1745478844763,6.59900168,148.59,148.55,6.59900168]
[1745478845563,6.59900168,148.59,148.57,6.73]
[1745478848270,6.59900168,148.59,148.58,6.7295]
[1745478848565,38.04730168,148.61,148.58,6.7295]
[1745478848773,24.72,148.61,148.57,6.59900168]
[1745478848960,3.9059,148.64,148.57,31.09900168]
[1745478849161,31.09900168,148.65,148.59,6.59900168]
[1745478850170,24.5,148.65,148.61,6.59900168]
[1745478850364,6.59900168,148.66,148.62,6.59900168]
[1745478850561,6.59900168,148.67,148.62,6.59900168]
[1745478851170,6.7262,148.66,148.63,6.727]
[1745478851366,6.59900168,148.67,148.62,6.59900168]
[1745478851566,6.59900168,148.66,148.61,6.59900168]
[1745478852270,6.7267,148.65,148.62,6.7276]
[1745478852471,6.59900168,148.66,148.62,6.7276]
[1745478852770,13.32510168,148.66,148.62,6.7276]
[1745478852971,13.32510168,148.66,148.63,6.7272]
[1745478853770,13.32510168,148.66,148.62,13.32650168]
[1745478854468,6.7261,148.66,148.63,6.7271]
[1745478854664,28.4577,148.68,148.63,6.7271]
[1745478854665,6.59900168,148.67,148.63,6.59900168]
[1745478854871,6.59900168,148.66,148.62,6.59900168]
[1745478855371,13.32520168,148.66,148.63,6.7272]
[1745478855672,6.7262,148.66,148.63,6.7272]
[1745478856468,24.5,148.68,148.64,6.59900168]
[1745478857173,31.2253,148.68,148.65,6.7261]
[1745478858776,6.59900168,148.7,148.66,6.59900168]
[1745478858974,6.59900168,148.68,148.64,11.59900168]
[1745478859474,13.32410168,148.68,148.65,6.7261]
[1745478860172,6.7251,148.68,148.65,6.7261]
[1745478863668,6.7259,148.66,148.64,5.0]
[1745478863874,6.59900168,148.67,148.64,5.0]
[1745478864773,24.5,148.69,148.64,11.59900168]
[1745478864973,24.5,148.69,148.66,6.59900168]
[1745478865274,4.0599,148.73,148.66,6.59900168]
[1745478865275,31.09900168,148.72,148.66,6.59900168]
[1745478866170,6.7239,148.71,148.67,13.32440168]
[1745478867772,6.59900168,148.7,148.65,31.09900168]
[1745478867972,6.59900168,148.7,148.65,6.59900168]
[1745478868576,13.32430168,148.68,148.65,6.7262]
[1745478868776,6.59900168,148.68,148.64,5.0]
[1745478869277,6.7255,148.67,148.64,5.0]
[1745478870080,6.7255,148.67,148.64,11.7267]
[1745478870782,13.32410168,148.68,148.65,6.7262]
[1745478870980,6.59900168,148.68,148.64,5.0]
[1745478871580,6.7255,148.67,148.64,11.7265]
[1745478871879,24.5,148.72,148.64,5.0]
[1745478872078,6.59900168,148.69,148.64,5.0]
[1745478872280,6.7252,148.68,148.65,6.7262]
[1745478873279,6.7252,148.68,148.64,11.7266]
[1745478873780,6.7256,148.67,148.64,11.7266]
[1745478874983,6.7252,148.68,148.65,6.7263]
[1745478875182,6.59900168,148.69,148.65,6.59900168]
[1745478875582,13.32380168,148.69,148.66,6.7256]
[1745478875881,6.59900168,148.69,148.65,6.59900168]
[1745478876182,6.59900168,148.69,148.64,5.0]
[1745478876481,6.7253,148.68,148.65,6.7261]
[1745478877084,13.32370168,148.69,148.66,6.7259]
[1745478879086,6.725,148.68,148.66,6.7259]
[1745478879283,6.725,148.68,148.66,11.7259]
[1745478879785,6.725,148.68,148.66,5.0]
[1745478880287,6.7254,148.67,148.66,5.0]
[1745478883290,37.82410168,148.68,148.66,5.0]
[1745478884686,6.7254,148.67,148.66,5.0]
[1745478887697,37.82420168,148.68,148.66,5.0]
[1745478887897,31.09900168,148.68,148.66,5.0]
[1745478888797,6.7254,148.67,148.66,5.0]
[1745478892698,31.2252,148.68,148.66,11.7259]
[1745478892995,6.59900168,148.7,148.66,11.59900168]
[1745478893393,3.6115,148.7,148.67,6.7252]
[1745478893594,39.69313297,148.73,148.69,6.59900168]
[1745478893794,39.69313297,148.73,148.72,6.59900168]
[1745478894299,39.69313297,148.73,148.72,13.32220168]
[1745478894900,94.76629946,148.76,148.75,6.7218]
[1745478895097,94.76629946,148.76,148.75,14.12809771]
[1745478897704,6.0309,148.8,148.78,6.7203]
[1745478897905,6.0309,148.8,148.79,7.40629771]
[1745478898105,6.0309,148.8,148.79,7.06166628]
[1745478899105,6.0309,148.8,148.74,31.15900168]
[1745478899297,6.0309,148.8,148.74,24.56]
[1745478899499,12.7508,148.8,148.76,6.7211]
[1745478899698,12.7508,148.8,148.74,24.56]
[1745478900103,12.7508,148.8,148.75,6.7215]
[1745478901207,12.7508,148.8,148.76,6.7213]
[1745478902305,12.7508,148.8,148.74,24.56]
[1745478902504,3.9905,148.8,148.76,10.27931759]
[1745478903410,6.7184,148.83,148.8,6.7196]
[1745478904109,35.1051,148.84,148.8,6.7196]
[1745478904408,28.3872,148.84,148.81,6.7189]
[1745478905005,10.27931759,148.83,148.75,24.54]
[1745478905209,10.27931759,148.83,148.76,5.0]
[1745478905505,10.27931759,148.83,148.77,6.7206]
[1745478905910,6.7196,148.8,148.77,6.7206]
[1745478907211,6.7196,148.8,148.77,11.7206]
[1745478907914,10.27931759,148.83,148.77,5.0]
[1745478908712,6.7203,148.79,148.77,5.0]
[1745478909913,10.27931759,148.83,148.77,5.0]
[1745478910113,10.27931759,148.83,148.77,11.7206]
[1745478910313,6.7196,148.8,148.77,11.7206]
[1745478911415,6.7196,148.8,148.77,5.0]
[1745478911915,6.7205,148.78,148.77,5.0]
[1745478913113,6.7215,148.76,148.72,24.54]
[1745478913314,10.27931759,148.79,148.69,10.27931759]
[1745478913510,10.27931759,148.77,148.7,31.38929141]
[1745478913718,10.27931759,148.77,148.7,24.54]
[1745478913919,24.54,148.76,148.7,24.54]
[1745478914114,24.54,148.76,148.69,10.27931759]
[1745478914416,24.54,148.76,148.71,10.27931759]
[1745478914616,24.54,148.76,148.72,6.7229]
[1745478915117,24.54,148.76,148.71,17.00261759]
[1745478915418,24.54,148.76,148.69,10.27931759]
[1745478915618,24.54,148.76,148.7,6.85113207]
[1745478915820,6.7223,148.74,148.7,6.724]
[1745478916419,6.723,148.73,148.69,6.7244]
[1745478916720,6.723,148.73,148.7,6.85218784]
[1745478916918,6.723,148.73,148.69,6.7244]
[1745478917116,6.723,148.73,148.7,6.85219057]
[1745478917315,24.54,148.76,148.68,6.7247]
[1745478917520,10.27931759,148.75,148.69,6.85310915]
[1745478917720,10.27931759,148.75,148.67,34.81931759]
[1745478917921,10.27931759,148.75,148.68,6.85327393]
[1745478918122,10.27931759,148.75,148.67,31.2653]
[1745478918420,3.9095,148.74,148.68,6.85349855]
[1745478918619,3.9095,148.74,148.67,31.2653]
[1745478918919,3.9095,148.74,148.68,6.85446306]
[1745478919116,3.9095,148.74,148.67,24.54]
[1745478919314,10.27931759,148.73,148.64,24.54]
[1745478919519,6.7248,148.69,148.65,6.85586564]
[1745478919722,6.7248,148.69,148.66,6.85586564]
[1745478919920,6.7248,148.69,148.65,6.726]
[1745478920221,26.4152,148.72,148.66,6.85586577]
[1745478920413,26.4152,148.72,148.65,6.726]
[1745478920618,6.7247,148.69,148.66,6.85665271]
[1745478920921,6.7247,148.69,148.65,6.726]
[1745478921220,6.7247,148.69,148.66,6.85661666]
[1745478921419,6.7247,148.69,148.65,6.726]
[1745478921623,6.7251,148.68,148.66,6.8573102]
[1745478921921,10.27931759,148.71,148.64,24.54]
[1745478922120,6.7259,148.67,148.65,6.85738721]
[1745478922322,6.7259,148.67,148.63,6.7271]
[1745478922522,6.7259,148.67,148.64,6.7267]
[1745478923024,6.7252,148.68,148.61,567.15931759]
[1745478923227,10.27931759,148.71,148.62,9.80854186]
[1745478923427,10.27931759,148.71,148.63,9.80840223]
[1745478923622,10.27931759,148.71,148.64,6.85830261]
[1745478923924,10.27931759,148.71,148.61,567.15931759]
[1745478924220,10.27931759,148.71,148.62,9.8080974]
[1745478924423,26.4152,148.72,148.63,20.08741499]
[1745478924625,26.4152,148.72,148.64,6.85799746]
[1745478924827,6.7249,148.69,148.66,6.7259]
[1745478925020,26.4152,148.72,148.63,10.27931759]
[1745478925328,6.7249,148.69,148.65,6.7262]
[1745478925826,33.1386,148.72,148.66,6.85757852]
[1745478926028,33.1386,148.72,148.67,6.85737666]
[1745478926223,33.1386,148.72,148.65,34.83931759]
[1745478926429,26.4152,148.72,148.66,6.85861355]
[1745478926731,26.4152,148.72,148.65,34.83931759]
[1745478926923,6.7246,148.69,148.66,13.58449795]
[1745478927124,26.4152,148.72,148.65,24.56]
[1745478927626,10.27931759,148.71,148.65,31.2863]
[1745478928228,6.7249,148.69,148.65,31.2863]
[1745478928930,6.7249,148.69,148.66,6.86100699]
[1745478929125,6.7249,148.69,148.65,31.2863]
[1745478929428,6.7249,148.69,148.66,6.86088738]
[1745478929628,6.7249,148.69,148.65,31.2863]
[1745478929822,6.7249,148.69,148.66,6.7259]
[1745478931330,6.7249,148.69,148.65,6.7262]
[1745478931931,6.7249,148.69,148.66,6.7258]
[1745478934533,10.27931759,148.71,148.63,10.27931759]
[1745478934736,10.27931759,148.71,148.64,9.81763601]
[1745478934924,10.27931759,148.71,148.65,6.86469299]
[1745478935128,6.7257,148.67,148.63,6.727]
[1745478935333,6.7257,148.67,148.64,9.81753402]
[1745478935533,6.7257,148.67,148.65,6.86461797]
[1745478935836,6.7257,148.67,148.63,6.727]
[1745478936030,6.7257,148.67,148.64,16.54504611]
[1745478936331,6.7257,148.67,148.65,6.86518873]
[1745478936531,6.7257,148.67,148.64,6.7267]
[1745478936731,6.7257,148.67,148.65,6.86573358]
[1745478936925,6.7257,148.67,148.64,6.7267]
[1745478937126,6.7257,148.67,148.65,6.86573449]
[1745478937334,6.7257,148.67,148.64,6.7267]
[1745478938934,6.7257,148.67,148.65,6.86598744]
[1745478939233,6.7257,148.67,148.64,13.31447589]
[1745478939531,6.7259,148.66,148.64,13.31447589]
[1745478939934,6.58777589,148.69,148.64,13.31447589]
[1745478940137,6.7258,148.67,148.64,13.31447589]
[1745478940335,6.58777589,148.67,148.64,6.7267]
[1745478941134,6.58777589,148.66,148.61,6.58777589]
[1745478941334,6.58777589,148.65,148.62,6.86413044]
[1745478941534,6.58777589,148.64,148.59,31.06777589]
[1745478941838,6.58777589,148.64,148.6,9.8176446]
[1745478942030,6.58777589,148.65,148.61,9.8176446]
[1745478942233,6.58777589,148.65,148.62,6.86464568]
[1745478942435,6.58777589,148.65,148.6,6.58777589]
[1745478942635,6.7271,148.64,148.61,16.54512839]
[1745478942829,6.7271,148.64,148.61,6.7281]
[1745478943337,1.9418,148.66,148.62,6.86408887]
[1745478943537,1.9418,148.66,148.59,10.2970854]
[1745478943737,1.9418,148.66,148.6,9.81680338]
[1745478943738,6.7267,148.65,148.6,9.81680338]
[1745478944035,6.7267,148.65,148.61,9.81680338]
[1745478944233,6.7267,148.65,148.62,13.59155138]
[1745478944435,6.7267,148.65,148.62,6.7275]
[1745478947541,6.7268,148.64,148.61,6.7281]
[1745478947741,6.7268,148.64,148.62,6.86385597]
[1745478947937,6.7268,148.64,148.61,6.7281]
[1745478948146,6.7268,148.65,148.62,6.86385688]
[1745478948339,1.9418,148.66,148.61,6.7279]
[1745478948640,6.7268,148.64,148.62,6.86523606]
[1745478948841,6.7268,148.64,148.61,6.7279]
[1745478949042,6.7268,148.64,148.62,6.86520614]
[1745478949241,6.7268,148.64,148.61,6.7279]
[1745478949442,6.7268,148.64,148.62,6.86735262]
[1745478949643,6.7268,148.64,148.61,6.7279]
[1745478949846,6.7268,148.64,148.62,6.86726096]
[1745478950040,12.2388854,148.66,148.57,34.7770854]
[1745478950248,12.2388854,148.66,148.58,9.8214967]
[1745478950545,6.7281,148.62,148.59,16.5502967]
[1745478950846,6.7281,148.62,148.6,9.8214967]
[1745478951046,6.7281,148.62,148.61,6.86733613]
[1745478951246,6.7281,148.62,148.61,9.82387782]
[1745478951544,6.7274,148.63,148.61,6.86733613]
[1745478951745,6.7274,148.63,148.6,6.7286]
[1745478951944,6.7274,148.63,148.61,6.87246093]
[1745478952244,6.7274,148.63,148.6,6.7286]
[1745478952441,6.7274,148.63,148.61,9.82951977]
[1745478952643,6.7274,148.63,148.6,6.7286]
[1745478952842,6.7274,148.63,148.61,9.83243788]
[1745478953044,24.5,148.64,148.59,10.2970854]
[1745478953242,24.5,148.64,148.6,9.8334701]
[1745478953549,24.5,148.64,148.62,6.7275]
[1745478954045,6.7266,148.65,148.62,6.7275]
[1745478955052,6.7266,148.65,148.63,6.8796755]
[1745478955248,6.7266,148.65,148.62,6.7275]
[1745478955449,6.7268,148.64,148.63,6.88364485]
[1745478957353,6.7266,148.65,148.63,6.88364485]
[1745478957546,6.7266,148.65,148.64,6.88364485]
[1745478957854,1.9418,148.66,148.64,13.61044485]
[1745478958049,1.9418,148.66,148.65,6.89162018]
[1745478958353,1.9418,148.66,148.65,6.89161704]
[1745478958651,8.6677,148.66,148.65,6.89161704]
[1745478960852,8.6677,148.66,148.65,3.77921704]
[1745478961049,6.7273,148.64,148.61,6.728]
[1745478961352,1.9418,148.66,148.6,6.7284]
[1745478961554,1.9418,148.66,148.57,34.7770854]
[1745478961858,1.9418,148.66,148.59,6.7286]
[1745478962356,6.7278,148.62,148.59,6.7286]
[1745478963554,6.7285,148.61,148.58,6.7294]
[1745478963759,6.7285,148.61,148.57,34.7770854]
[1745478964258,6.7285,148.61,148.58,2.82183259]
[1745478964455,6.7285,148.61,148.59,2.82183259]
[1745478964659,6.7285,148.61,148.6,2.82183259]
[1745478964959,6.7285,148.61,148.6,2.82183262]
[1745478965951,6.7279,148.62,148.6,2.82183262]
[1745478966154,6.7279,148.62,148.61,2.82183262]
[1745478966560,6.7279,148.62,148.6,6.7286]
[1745478966761,6.7279,148.62,148.61,2.82191363]
[1745478968763,6.7279,148.62,148.61,2.82142507]
[1745478969868,6.7279,148.62,148.59,6.7288]
[1745478970065,6.7279,148.62,148.6,2.82121337]
[1745478970267,6.7279,148.62,148.61,2.82121337]
[1745478971270,6.7279,148.62,148.59,6.7288]
[1745478971770,6.7278,148.62,148.59,6.7288]
[1745478972369,6.7278,148.62,148.6,2.82203497]
[1745478972570,6.7278,148.62,148.61,2.82203497]
[1745478973570,6.7278,148.62,148.61,2.82224693]
[1745478973766,6.59293214,148.63,148.59,6.7289]
[1745478973963,6.7282,148.61,148.6,2.82224637]
[1745478974166,6.7282,148.61,148.59,6.7289]
[1745478974371,6.7282,148.61,148.58,13.32223214]
[1745478974571,6.7282,148.61,148.59,2.82259642]
[1745478974867,6.7279,148.62,148.6,2.82259642]
[1745478975071,6.7279,148.62,148.61,2.82259642]
[1745478976274,6.7286,148.61,148.59,6.59293214]
[1745478976471,6.7286,148.61,148.6,2.82312445]
[1745478976968,13.32153214,148.61,148.6,2.82312445]
[1745478977270,6.7295,148.58,148.55,6.59293214]
[1745478977470,6.59293214,148.59,148.55,6.59293214]
[1745478977772,6.59293214,148.59,148.56,2.82368399]
[1745478977968,6.59293214,148.59,148.57,2.82368399]
[1745478978269,13.32203214,148.59,148.58,2.82368399]
[1745478978571,6.59293214,148.61,148.58,2.82368399]
[1745478978773,6.7287,148.6,148.59,2.82368399]
[1745478979171,24.5,148.63,148.59,2.82368399]
[1745478979376,24.5,148.63,148.6,2.82305809]
[1745478979573,24.5,148.63,148.61,2.82281908]
[1745478979874,24.5,148.63,148.6,6.7282]
[1745478980572,31.2275,148.63,148.6,6.7282]
[1745478983673,31.2275,148.63,148.61,2.82450865]
[1745478983874,31.2275,148.63,148.62,2.82450865]
[1745478985477,31.2275,148.63,148.6,6.7282]
[1745478986574,31.2275,148.63,148.61,2.82574686]
[1745478986777,31.2275,148.63,148.62,2.82574686]
[1745478986977,6.7277,148.62,148.59,13.32183214]
[1745478987178,6.7277,148.62,148.6,2.82576162]
[1745478987476,6.7277,148.62,148.61,2.82576162]
[1745478989282,6.7277,148.62,148.61,2.82601052]
[1745478992382,6.73,148.57,148.55,6.59293214]
[1745478992683,6.59293214,148.58,148.53,31.07293214]
[1745478992883,6.7307,148.56,148.53,37.80443214]
[1745478993084,6.59293214,148.58,148.52,6.59293214]
[1745478993383,6.59293214,148.58,148.52,13.32473214]
[1745478993582,6.7309,148.55,148.52,13.32473214]
[1745478993884,6.59293214,148.58,148.52,6.59293214]
[1745478994177,6.59293214,148.58,148.54,6.59293214]
[1745478994786,24.48,148.59,148.56,6.59293214]
[1745478994987,6.59293214,148.6,148.56,6.59293214]
[1745478995175,13.32183214,148.6,148.57,6.7297]
[1745478995482,6.59293214,148.6,148.56,6.59293214]
[1745478995784,6.7294,148.59,148.56,6.59293214]
[1745478997387,6.59293214,148.6,148.54,24.48]
[1745478997586,6.59293214,148.6,148.54,31.07293214]
[1745478997886,6.7299,148.58,148.55,6.7309]
[1745478998087,6.59293214,148.58,148.53,6.59293214]
[1745478998584,6.7311,148.55,148.52,6.732]
[1745478999487,6.7314,148.54,148.52,6.732]
[1745478999785,6.59293214,148.57,148.52,6.59293214]
[1745479000189,6.7306,148.56,148.52,6.59293214]
[1745479000388,6.7306,148.56,148.53,6.7315]
[1745479000590,6.7306,148.56,148.52,6.59293214]
[1745479001090,6.7306,148.56,148.53,6.7317]
[1745479001886,6.7309,148.55,148.53,6.7317]
[1745479002093,6.59293214,148.56,148.51,31.07293214]
[1745479002390,6.59293214,148.56,148.48,24.5]
[1745479002588,6.59293214,148.56,148.5,6.59293214]
[1745479002790,6.7316,148.54,148.51,6.7324]
[1745479004891,6.7319,148.53,148.5,13.32593214]
[1745479005897,6.7319,148.53,148.5,6.733]
[1745479006193,6.7323,148.52,148.5,6.733]
[1745479006592,6.59293214,148.54,148.5,6.733]
[1745479007791,6.59293214,148.54,148.5,13.32593214]
[1745479008192,6.7321,148.53,148.5,13.32593214]
[1745479008393,6.59293214,148.54,148.5,6.59293214]
[1745479008692,6.59293214,148.54,148.49,6.7334]
[1745479008693,6.7325,148.52,148.49,13.32633214]
[1745479008886,6.7325,148.52,148.49,6.59293214]
[1745479009593,6.7319,148.53,148.5,6.7331]
[1745479011194,6.7323,148.52,148.5,6.7331]
[1745479012091,6.59293214,148.54,148.51,6.7326]
[1745479012390,6.59293214,148.54,148.49,6.59293214]
[1745479012592,6.732,148.53,148.5,6.733]
[1745479013494,6.7323,148.52,148.5,6.733]
[1745479013893,6.59293214,148.54,148.5,6.733]
[1745479014190,6.7321,148.53,148.5,6.733]
[1745479015287,6.59293214,148.54,148.49,6.59293214]
[1745479015593,6.7311,148.55,148.51,6.59293214]
[1745479015787,6.59293214,148.56,148.51,6.59293214]
[1745479016292,6.7314,148.54,148.51,13.32543214]
[1745479016995,6.59293214,148.54,148.5,6.7331]
[1745479017494,6.7319,148.53,148.5,6.7331]
[1745479020091,6.7319,148.53,148.49,13.32623214]
[1745479020998,6.7323,148.52,148.49,13.32623214]
[1745479021199,6.7323,148.52,148.47,31.09293214]
[1745479021200,6.59293214,148.52,148.47,31.09293214]
[1745479021498,6.7344,148.48,148.45,6.59293214]
[1745479022198,6.7346,148.47,148.45,6.59293214]
[1745479022900,31.07293214,148.5,148.45,6.59293214]
[1745479023201,31.07293214,148.5,148.43,13.32913214]
[1745479023202,6.59293214,148.48,148.43,13.32913214]
[1745479023603,31.07293214,148.5,148.45,6.59293214]
[1745479024003,6.7346,148.47,148.45,6.59293214]
[1745479025203,6.7346,148.47,148.45,13.32833214]
[1745479025902,6.7341,148.48,148.45,13.32833214]
[1745479027705,31.2132,148.5,148.47,6.59293214]
[1745479027899,24.48,148.5,148.47,6.59293214]
[1745479028203,6.7338,148.49,148.47,6.59293214]
[1745479028405,6.7338,148.49,148.46,6.7348]
[1745479030304,31.07293214,148.5,148.48,6.734]
[1745479030611,6.59293214,148.53,148.49,6.59293214]
[1745479031909,6.7331,148.5,148.49,6.59293214]
[1745479032511,6.7331,148.5,148.47,13.32723214]
[1745479032712,6.59293214,148.51,148.46,24.5]
[1745479032915,6.59293214,148.49,148.45,6.59293214]
[1745479033109,6.7348,148.47,148.44,6.7358]
[1745479033310,6.7348,148.47,148.44,13.32873214]
[1745479033714,6.7348,148.47,148.44,6.59293214]
[1745479033919,6.7342,148.48,148.44,6.59293214]
[1745479034115,6.7342,148.48,148.46,6.59293214]
[1745479044418,6.59293214,148.49,148.44,6.59293214]
[1745479044718,6.59293214,148.49,148.36,904.83121053]
[1745479044719,6.59293214,148.47,148.4,24.5]
[1745479044909,6.59293214,148.47,148.41,6.59293214]
[1745479045522,6.7361,148.44,148.41,13.32993214]
[1745479046016,1.8717,148.48,148.4,31.2376]
[1745479046017,6.7364,148.43,148.4,31.2376]
[1745479046222,13.32933214,148.43,148.4,31.2376]
[1745479046821,6.59293214,148.42,148.39,6.7381]
[1745479047921,13.32993214,148.42,148.39,6.7381]
[1745479048125,6.59293214,148.42,148.4,6.7377]
[1745479048322,6.59293214,148.43,148.38,6.59293214]
[1745479049119,13.32973214,148.43,148.39,6.7378]
[1745479049824,13.32973214,148.43,148.4,6.7376]
[1745479052128,6.7368,148.42,148.39,13.33093214]
[1745479053228,6.7368,148.42,148.39,6.738]
[1745479053826,6.7372,148.41,148.38,6.7384]
[1745479054023,6.59293214,148.41,148.37,31.09293214]
[1745479054225,6.59293214,148.4,148.36,6.59293214]
[1745479054629,13.33093214,148.4,148.37,6.739]
[1745479057228,13.33023214,148.41,148.38,6.7385]
[1745479057423,6.7373,148.41,148.38,6.7385]
[1745479057727,6.7373,148.41,148.38,13.33143214]
[1745479060230,6.738,148.4,148.38,6.59293214]
[1745479060529,6.738,148.4,148.37,13.33193214]
[1745479061130,6.738,148.4,148.37,6.739]
[1745479061333,6.7382,148.39,148.36,6.59293214]
[1745479061543,1.9521,148.44,148.34,24.5]
[1745479061544,24.5,148.46,148.38,6.59293214]
[1745479061831,6.59293214,148.43,148.38,31.09293214]
[1745479062424,6.7371,148.42,148.38,37.83123214]
[1745479062626,6.7371,148.42,148.38,31.2383]
[1745479063035,6.7373,148.41,148.38,31.2383]
[1745479063233,6.7373,148.41,148.38,6.7383]
[1745479064434,13.33023214,148.41,148.38,6.7383]
[1745479064830,6.59293214,148.41,148.39,6.7381]
[1745479065139,31.09293214,148.43,148.37,6.59293214]
[1745479065435,37.82953214,148.43,148.37,6.59293214]
[1745479065636,24.5,148.43,148.39,6.59293214]
[1745479065836,2.0469,148.44,148.39,6.59293214]
[1745479066141,6.7367,148.43,148.4,6.7375]
[1745479066430,13.32963214,148.43,148.4,6.7375]